{"text_format":"3","workbook":"xlsx","n_sheets":3,"sheets":["GDE-kalkulator 2023","PT-koder","Tabell"],"not_rendered":{"external_links":2,"defined_names":13,"comments":2},"read":"whole","date_system":"1900"}

{"sheet":"GDE-kalkulator 2023","index":0,"n_rows":59,"n_cols":65,"rows_kept":59,"merged":[[2,3,2,7],[2,10,2,22],[2,26,2,42],[4,3,5,7],[4,10,4,11],[4,15,4,20],[4,29,4,30],[4,31,4,34],[5,10,5,11],[5,15,5,20],[5,29,5,30],[5,31,5,34],[5,53,5,65],[6,3,7,3],[6,4,7,4],[6,6,7,6],[6,7,7,7],[6,10,7,10],[6,11,7,11],[6,12,7,12],[6,13,7,13],[6,14,7,14],[6,15,7,15],[6,16,7,16],[6,17,7,17],[6,19,6,20],[6,21,7,21],[6,22,7,22],[6,28,6,31],[6,37,6,42],[6,53,7,53],[6,54,7,54],[6,55,7,55],[6,56,7,56],[6,58,7,58],[7,26,9,26],[7,28,7,31],[7,37,8,37],[7,38,8,38],[7,39,8,39],[7,40,7,41],[7,42,8,42],[8,28,8,31],[9,28,9,31],[10,26,15,26],[10,28,10,31],[11,28,11,31],[12,28,12,31],[13,28,13,31],[14,28,14,31],[15,28,15,31],[15,37,15,40],[16,26,18,26],[16,28,16,31],[16,37,16,38],[17,28,17,31],[17,37,17,38],[18,28,18,31],[18,37,18,38],[19,26,21,26],[19,28,19,31],[19,37,19,38],[20,28,20,31],[20,37,20,38],[21,28,21,31],[21,37,21,38],[22,26,28,26],[22,28,22,29],[22,37,22,38],[23,28,23,29],[23,37,23,38],[24,28,24,29],[24,37,24,41],[25,28,25,29],[26,28,26,29],[26,37,26,40],[27,27,27,28],[28,28,28,29],[29,26,36,26],[29,28,29,29],[30,28,30,29],[30,37,30,39],[31,28,31,29],[32,28,32,31],[32,37,33,42],[33,28,33,31],[34,28,34,31],[34,39,34,41],[35,13,35,14],[35,28,35,31],[35,39,35,41],[36,28,36,31],[36,39,38,42],[37,31,38,33],[37,34,38,35],[39,10,39,22],[42,10,42,11],[42,15,42,19],[44,5,47,7],[44,14,44,20],[44,30,44,35],[44,37,44,38],[44,39,44,42],[46,10,46,22],[46,26,46,35],[46,37,46,42],[47,10,47,22],[47,26,47,35],[47,37,47,42]]}
["© Nono Dimby 2021","© Nono Dimby 2022","© Nono Dimby 2023","© Nono Dimby 2024","© Nono Dimby 2025","© Nono Dimby 2026","© Nono Dimby 2027","© Nono Dimby 2028","© Nono Dimby 2029","© Nono Dimby 2030","© Nono Dimby 2031","© Nono Dimby 2032","© Nono Dimby 2033","© Nono Dimby 2034","© Nono Dimby 2035","© Nono Dimby 2036","© Nono Dimby 2037","© Nono Dimby 2038","© Nono Dimby 2039","© Nono Dimby 2040","© Nono Dimby 2041","© Nono Dimby 2042","© Nono Dimby 2043","© Nono Dimby 2044","© Nono Dimby 2045","© Nono Dimby 2046","© Nono Dimby 2047","© Nono Dimby 2048","© Nono Dimby 2049","© Nono Dimby 2050","© Nono Dimby 2051","© Nono Dimby 2052","© Nono Dimby 2053","© Nono Dimby 2054","© Nono Dimby 2055","© Nono Dimby 2056","© Nono Dimby 2057","© Nono Dimby 2058","© Nono Dimby 2059","© Nono Dimby 2060","© Nono Dimby 2061","© Nono Dimby 2062","© Nono Dimby 2063","© Nono Dimby 2064","© Nono Dimby 2065","© Nono Dimby 2066","© Nono Dimby 2067","© Nono Dimby 2068"]
[]
[{"$nulls":3},"Opplysninger om kommuner",{"$nulls":6},"Arealopplysninger",{"$nulls":15},"Spredeareal (Forskrift organisk gjødsel: FOR-2003-07-04-951)"]
[]
[{"$nulls":3},"til utfylling av kommunenummer for\nleiejord, leid og utleid spredeareal",{"$nulls":6},"Rogaland",{"$nulls":10},{"$f":"TODAY()","v":"2023-09-08"},{"$nulls":5},{"$f":"IF(N5<>\"\",N5,\"\")","v":""},{"$f":"IF(O5<>\"\",O5,\"\")","v":""},{"$f":"IF(P5<>\"\",P5,\"\")","v":""},null,{"$f":"IF(M5<>\"\",M5,\"\")","v":""},{"$nulls":5},"År:",{"$f":"TODAY()","v":"2023-09-08"}]
[{"$nulls":10},"Fylke",null,"Kommune","Gnr.","Bnr.","Navn/Foretak",{"$nulls":5},"År",{"$nulls":5},"Gnr","Bnr","Navn / Foretak",null,"Kommune",{"$nulls":21},"Kontroller Arealopplysninger"]
[{"$nulls":3},"Kommune","Kom. Nr",null,"Kommune","Kom. Nr",null,null,"Eierforhold spredeareal","Kom. nr","Navn / foretak","Gnr","Bnr"," Dyrka jord "," Overfl.-dyrka ","Innm.-beite",null,"Omregna spr.areal",null,"Spr.-avtale?","Merk",{"$nulls":3},"Dyr","Kode","Type",{"$nulls":3},"Faktor","1. okt","1. mars","GDE",null,"Godkjent spredeareal",{"$nulls":15},"Sjekk"," Dyrka jord "," Overfl.-dyrka ","Innmarks-beite",null,"Sprede-avtale?","Omregna spr.areal"]
[{"$nulls":19},"Beite","Frukth. oa",{"$nulls":5},"Hester",115,"Hester, under 3 år (i avl eller ikke)",{"$nulls":3},2,null,null,{"$f":"IF(AP15=3,IF(AI8&AH8=\"\",\"\",(AI8+AH8)/2/AG8),\"\")","v":""},null,"Eierforhold","Dyrka jord","Overfl.-dyrka","Eff. areal omregnet",null,"Sum daa",{"$nulls":16},"Beite","Frukth. oa",null,"Kommuneindeks",null,"Sjekk spredeareal"]
[{"$nulls":3},{"$f":"IF($K$5=\"\",\"\",IF(HLOOKUP($K$5,Kommunenavn,BK9)=0,\"\",HLOOKUP($K$5,Kommunenavn,BK9)))","v":"Bjerkreim"},{"$f":"IF($K$5=\"\",\"\",IF(D9=\"\",\"\",VLOOKUP(D9,Kommunenr,2)))","v":1114},null,{"$f":"IF($K$5=\"\",\"\",IF(HLOOKUP($K$5,Kommunenavn,BK35)=0,\"\",HLOOKUP($K$5,Kommunenavn,BK35)))","v":""},{"$f":"IF($K$5=\"\",\"\",IF(G9=\"\",\"\",VLOOKUP(G9,Kommunenr,2)))","v":""},null,null,"Egen jord (PT)",{"$f":"IF(M5=\"\",\"\",VLOOKUP(M5,Kommunenr,2))","v":""},{"$f":"IF(P5=\"\",\"\",P5)","v":""},{"$f":"IF(N5=\"\",\"\",N5)","v":""},{"$f":"IF(O5=\"\",\"\",O5)","v":""},{"$nulls":7},{"$f":"IF(K9=\"Leid spr.areal\",\"\",IF(R9<T9/2*3,\"NB!*\",\"\"))","v":""},{"$nulls":4},116,"Hester, 3 år og eldre  (i avl eller ikke)",{"$nulls":3},2,null,null,{"$f":"IF(AP15=3,IF(AI9&AH9=\"\",\"\",(AI9+AH9)/2/AG9),\"\")","v":""},{"$nulls":4},"Beite","Frukth.oa",{"$nulls":11},1,{"$f":"IF(BB9=1,IF(BG9=1,P9,0),0)","v":0},{"$f":"IF(BB9=1,IF(BG9=1,Q9,0),0)","v":0},{"$f":"IF(BB9=1,IF(BG9=1,R9,0),0)","v":0},null,1,{"$f":"IF($BG9=1,T9,0)","v":0},{"$f":"IF($BG9=1,U9,0)","v":0},null,2,null,{"$f":"COUNTIF(W9:W35,\"NB!*\")","v":0}]
[{"$nulls":3},"Bokn",1145,null,"","",{"$nulls":13},false,{"$f":"IF(K10=\"Leid spr.areal\",\"\",IF(R10<T10/2*3,\"NB!*\",\"\"))","v":""},{"$nulls":4},193,"Hester i pensjon i beitesesongen",{"$nulls":3},2,null,null,{"$f":"IF(AP15=3,IF(AI10&AH10=\"\",\"\",(AI10+AH10)/2/AG10),\"\")","v":""},null,"Egen jord (PT)",{"$f":"SUMIF($K$9:$K$35,AL10,$BC$9:$BC$35)","v":0},{"$f":"SUMIF($K$9:$K$35,AL10,$BD$9:$BD$35)","v":0},{"$f":"SUMIF($K$9:$K$35,AL10,$BH$9:$BH$35)","v":0},{"$f":"SUMIF($K$9:$K$35,AL10,$BI$9:$BI$35)","v":0},{"$f":"IF(AP15=3,SUM(AM10:AP10),\"\")","v":0},{"$nulls":10},1,0,0,0,null,1,0,0,null,3]
[{"$nulls":3},"Eigersund",1101,null,"","",{"$nulls":13},false,{"$f":"IF(K11=\"Leid spr.areal\",\"\",IF(R11<T11/2*3,\"NB!*\",\"\"))","v":""},{"$nulls":3},"Storfe",120,"Melkekyr, kalva i de siste 15 måneder",{"$nulls":3},1,null,null,{"$f":"IF(AP15=3,IF(AI11&AH11=\"\",\"\",(AI11+AH11)/2/AG11),\"\")","v":""},null,"Leid jord (PT)",{"$f":"SUMIF($K$9:$K$35,AL11,$BC$9:$BC$35)","v":0},{"$f":"SUMIF($K$9:$K$35,AL11,$BD$9:$BD$35)","v":0},{"$f":"SUMIF($K$9:$K$35,AL11,$BH$9:$BH$35)","v":0},{"$f":"SUMIF($K$9:$K$35,AL11,$BI$9:$BI$35)","v":0},{"$f":"IF(AP15=3,SUM(AM11:AP11),\"\")","v":0},{"$nulls":10},1,0,0,0,null,1,0,0,null,4]
[{"$nulls":3},"Gjesdal",1122,null,"","",{"$nulls":13},false,{"$f":"IF(K12=\"Leid spr.areal\",\"\",IF(R12<T12/2*3,\"NB!*\",\"\"))","v":""},{"$nulls":4},120,"Melkekyr (bevaringsrase), kalva siste 18 mnd",{"$nulls":3},1,null,null,{"$f":"IF(AP15=3,IF(AI12&AH12=\"\",\"\",(AI12+AH12)/2/AG12),\"\")","v":""},null,"Leid spr.areal",{"$f":"SUMIF($K$9:$K$35,AL12,$BC$9:$BC$35)","v":0},{"$f":"SUMIF($K$9:$K$35,AL12,$BD$9:$BD$35)","v":0},{"$f":"SUMIF($K$9:$K$35,AL12,$BH$9:$BH$35)","v":0},{"$f":"SUMIF($K$9:$K$35,AL12,$BI$9:$BI$35)","v":0},{"$f":"IF(AP15=3,SUM(AM12:AP12),\"\")","v":0},{"$nulls":10},1,0,0,0,null,1,0,0,null,5]
[{"$nulls":3},"Haugesund",1106,null,"","",{"$nulls":13},false,"",{"$nulls":4},121,"Ammekyr, kalvet de siste 15 måneder",{"$nulls":3},1.5,null,null,{"$f":"IF(AP15=3,IF(AI13&AH13=\"\",\"\",(AI13+AH13)/2/AG13),\"\")","v":""},null,"Utleid spr.areal",{"$f":"-SUMIF($K$9:$K$35,AL13,$BC$9:$BC$35)","v":0},{"$f":"-SUMIF($K$9:$K$35,AL13,$BD$9:$BD$35)","v":0},{"$f":"-SUMIF($K$9:$K$35,AL13,$BH$9:$BH$35)","v":0},{"$f":"-SUMIF($K$9:$K$35,AL13,$BI$9:$BI$35)","v":0},{"$f":"IF(AP15=3,SUM(AM13:AP13),\"\")","v":0},{"$nulls":10},1,0,0,0,null,1,0,0,null,6]
[{"$nulls":3},"Hjelmeland",1133,null,"","",{"$nulls":13},false,"",{"$nulls":4},121,"Ammekyr (bevaringsrase), kalva siste 18 mnd",{"$nulls":3},1.5,null,null,{"$f":"IF(AP15=3,IF(AI14&AH14=\"\",\"\",(AI14+AH14)/2/AG14),\"\")","v":""},null,"Sum spr.areal",{"$f":"SUM(AM10:AM13)","v":0},{"$f":"SUM(AN10:AN13)","v":0},{"$f":"SUM(AO10:AO13)","v":0},{"$f":"SUM(AP10:AP13)","v":0},{"$f":"SUM(AQ10:AQ13)","v":0},{"$nulls":10},1,0,0,0,null,1,0,0,null,7]
[{"$nulls":3},"Hå",1119,null,"","",{"$nulls":13},false,"",{"$nulls":4},119,"Øvrige storfe ",{"$nulls":3},3,null,null,{"$f":"IF(AP15=3,IF(AI15&AH15=\"\",\"\",(AI15+AH15)/2/AG15),\"\")","v":""},null,{"$f":"IF(AB5=\"\",0,0.5)","v":0},{"$f":"IF(AC5=\"\",0,0.5)","v":0},{"$f":"IF(AD5=\"\",0,1)","v":0},{"$f":"IF(AF5=\"\",0,1)","v":0},3,{"$nulls":11},1,0,0,0,null,1,0,0,null,8]
[{"$nulls":3},"Karmøy",1149,null,"","",{"$nulls":13},false,"",{"$nulls":4},120,"Jerseyku",{"$nulls":3},1.3,null,null,{"$f":"IF(AP15=3,IF(AI16&AH16=\"\",\"\",(AI16+AH16)/2/AG16),\"\")","v":""},null,"Beiting utenom godkjent spredeareal",{"$nulls":4},"Beitelogg?",{"$nulls":10},1,0,0,0,null,1,0,0,null,9]
[{"$nulls":3},"Klepp",1120,null,"","",{"$nulls":13},false,"",{"$nulls":3},"Sauer",145,"Søyer, født i fjor eller tidligere",{"$nulls":3},7,null,null,{"$f":"IF(AP15=3,IF(AI17=\"\",\"\",AI17/AG17),\"\")","v":""},null,"Beitedyr",null,"Faktor","Ant. dyr","Ant uker","GDE",{"$nulls":10},1,0,0,0,null,1,0,0,null,10]
[{"$nulls":3},"Kvitsøy",1144,null,"","",{"$nulls":13},false,"",{"$nulls":4},146,"Værer, født i fjor eller tidligere ",{"$nulls":3},7,null,null,{"$f":"IF(AP15=3,IF(AI18=\"\",\"\",AI18/AG18),\"\")","v":""},null,"Melkeku: ute dag og natt",null,{"$f":"IF(AP15=3,0.019,\"\")","v":0.019},null,null,{"$f":"IF(AP15=3,AN18*AO18*AP18,\"\")","v":{"v":0,"d":"0.0"}},{"$nulls":10},1,0,0,0,null,1,0,0,null,11]
[{"$nulls":3},"Lund",1112,null,"","",{"$nulls":13},false,"",{"$nulls":4},139,"Melkesau, født i fjor eller tidligere ",{"$nulls":3},7,null,null,{"$f":"IF(AP15=3,IF(AI19=\"\",\"\",AI19/AG19),\"\")","v":""},null,"Melkeku: ute kun dag",null,{"$f":"IF(AP15=3,0.01,\"\")","v":0.01},null,null,{"$f":"IF(AP15=3,AN19*AO19*AP19,\"\")","v":{"v":0,"d":"0.0"}},{"$nulls":10},1,0,0,0,null,1,0,0,null,12]
[{"$nulls":3},"Randaberg",1127,null,"","",{"$nulls":13},false,"",{"$nulls":3},"Geiter",140,"Melkegeiter ",{"$nulls":3},7,null,null,{"$f":"IF(AP15=3,IF(AI20&AH20=\"\",\"\",(AI20+AH20)/2/AG20),\"\")","v":""},null,"Ungdyr",null,{"$f":"IF(AP15=3,0.006,\"\")","v":0.006},null,null,{"$f":"IF(AP15=3,AN20*AO20*AP20,\"\")","v":{"v":0,"d":"0.0"}},{"$nulls":10},1,0,0,0,null,1,0,0,null,13]
[{"$nulls":3},"Sandnes",1108,null,"","",{"$nulls":13},false,"",{"$nulls":4},142,"Ammegeiter ",{"$nulls":3},7,null,null,{"$f":"IF(AP15=3,IF(AI21&AH21=\"\",\"\",(AI21+AH21)/2/AG21),\"\")","v":""},null,"Ammekyr",null,{"$f":"IF(AP15=3,0.013,\"\")","v":0.013},null,null,{"$f":"IF(AP15=3,AN21*AO21*AP21,\"\")","v":{"v":0,"d":"0.0"}},{"$nulls":10},1,0,0,0,null,1,0,0,null,14]
[{"$nulls":3},"Sauda",1135,null,"","",{"$nulls":13},false,"",{"$nulls":4},144,"Bukker og ungdyr (inkl. kje) ",{"$nulls":3},7,null,null,{"$f":"IF(AP15=3,IF(AI22&AH22=\"\",\"\",(AI22+AH22)/2/AG22),\"\")","v":""},null,"Hest",null,{"$f":"IF(AP15=3,0.01,\"\")","v":0.01},null,null,{"$f":"IF(AP15=3,AN22*AO22*AP22,\"\")","v":{"v":0,"d":"0.0"}},{"$nulls":10},1,0,0,0,null,1,0,0,null,15]
[{"$nulls":3},"Sokndal",1111,null,"","",{"$nulls":13},false,"",{"$nulls":3},"Griser",155,"Avlspurker, minst ett kull ",null,"Fytase","Ja",{"$f":"IF(AF23=\"Ja\",3,2.5)","v":{"v":3,"d":"3.0"}},null,null,{"$f":"IF(AP15=3,IF(AI23&AH23=\"\",\"\",(AI23+AH23)/2/AG23),\"\")","v":""},null,"Vinterfòra sau eller geit",null,{"$f":"IF(AP15=3,0.003,\"\")","v":0.003},null,null,{"$f":"IF(AP15=3,AN23*AO23*AP23,\"\")","v":{"v":0,"d":"0.0"}},{"$nulls":10},1,0,0,0,null,1,0,0,null,16]
[{"$nulls":3},"Sola",1124,null,"","",{"$nulls":13},false,"",{"$nulls":4},155,"Avlspurker i NAV         (korrigert faktor)",null,"Fytase","Ja",{"$f":"IF(AF23=\"Ja\",4,2.9)","v":{"v":4,"d":"4.0"}},null,null,{"$f":"IF(AP15=3,IF(AI24&AH24=\"\",\"\",(AI24+AH24)/2/AG24),\"\")","v":""},null,"Red. kontraktprod. egg",null,{"$f":"IF(AP15=3,0.000083,\"\")","v":{"v":8.3e-05,"d":"0.00008"}},null,null,{"$f":"IF(AP15=3,AN24*AO24*AP24,\"\")","v":{"v":0,"d":"0.0"}},{"$nulls":10},1,0,0,0,null,1,0,0,null,17]
[{"$nulls":3},"Stavanger",1103,null,"","",{"$nulls":13},false,"",{"$nulls":4},155,"Avlspurker i satelitt   (korrigert faktor)",null,"Fytase","Ja",{"$f":"IF(AF23=\"Ja\",2.4,2.19)","v":2.4},null,null,{"$f":"IF(AP15=3,IF(AI25&AH25=\"\",\"\",(AI25+AH25)/2/AG25),\"\")","v":""},null,"Sum GDE reduksjon på beite",{"$nulls":4},{"$f":"IF(AP15=3,SUM(AQ18:AQ24),\"\")","v":{"v":0,"d":"0.0"}},{"$nulls":10},1,0,0,0,null,1,0,0,null,18]
[{"$nulls":3},"Strand",1130,null,"","",{"$nulls":13},false,"",{"$nulls":4},156,"Råner i avl",null,"Fytase","Ja",{"$f":"IF(AF26=\"Ja\",3,2.5)","v":{"v":3,"d":"3.0"}},null,null,{"$f":"IF(AP15=3,IF(AI26&AH26=\"\",\"\",(AI26+AH26)/2/AG26),\"\")","v":""},{"$nulls":17},1,0,0,0,null,1,0,0,null,19]
[{"$nulls":3},"Suldal",1134,null,"","",{"$nulls":13},false,"",{"$nulls":4},184,"NB: Slakta gris på årsbasis",null,"Fytase","Ja",{"$f":"IF(AF27=\"Ja\",20,18)","v":20},null,null,{"$f":"IF(AP15=3,IF(AI27=\"\",\"\",AI27/AG27),\"\")","v":""},null,"Levert/mottatt fjørfegjødsel",{"$nulls":4},"Krever kvittering",{"$nulls":10},1,0,0,0,null,1,0,0,null,20]
[{"$nulls":3},"Time",1121,null,"","",{"$nulls":13},false,"",{"$nulls":4},"157, 158, 159",null,"Ungpurker/råner påsett avl","Fytase","Ja",{"$f":"IF(AF28=\"Ja\",9,8)","v":9},null,null,{"$f":"IF(AP15=3,IF((AH28+AI28)=0,\"\",(AH28+AI28)/2/AG28),\"\")","v":""},null,"Dyreslag","Faktor","Levert (m3)","Levert GDEx","Mottak (m3)","Mottak GDEx",{"$nulls":10},1,0,0,0,null,1,0,0,null,21]
[{"$nulls":3},"Tysvær",1146,null,"","",{"$nulls":13},false,"",{"$nulls":4},"Lev.db","Solgte ungpurker/råner >50 kg/>15 uker",null,"Fytase","Ja",{"$f":"IF(AF29=\"Ja\",20,18)","v":20},null,null,{"$f":"IF(AP15=3,IF(AI29=\"\",\"\",AI29/AG29),\"\")","v":""},null,"Fjørfe TS < 33% ",{"$f":"IF(AP15=3,0.16,\"\")","v":0.16},null,{"$f":"IF(AP15=3,AM29*AN29,\"\")","v":{"v":0,"d":"0.0"}},null,{"$f":"IF(AP15=3,AP29*AM29,\"\")","v":{"v":0,"d":"0.0"}},{"$nulls":10},1,0,0,0,null,1,0,0,null,22]
[{"$nulls":3},"Utsira",1151,null,"","",{"$nulls":13},false,"",{"$nulls":3},"Fjørfe","161-162","Verpe- og rugehøner, > 20 uker",null,"Fytase","Ja",{"$f":"IF(AF30=\"Ja\",100,80)","v":100},null,null,{"$f":"IF(AP15=3,IF(AI30&AH30=\"\",\"\",(AI30+AH30)/2/AG30),\"\")","v":""},null,"Fjørfe TS > 33% ",{"$f":"IF(AP15=3,0.36,\"\")","v":0.36},null,{"$f":"IF(AP15=3,AM30*AN30,\"\")","v":{"v":0,"d":"0.0"}},null,{"$f":"IF(AP15=3,AP30*AM30,\"\")","v":{"v":0,"d":"0.0"}},{"$nulls":10},1,0,0,0,null,1,0,0,null,23]
[{"$nulls":3},"Vindafjord",1160,null,"","",{"$nulls":13},false,"",{"$nulls":4},175,"Livkylling, påsatt til verpehøns ",null,"Fytase","Ja",{"$f":"IF(AF31=\"Ja\",690,550)","v":690},null,null,{"$f":"IF(AP15=3,IF(AH31=\"\",\"\",AH31/AG31),\"\")","v":""},null,"Sum levert/mottatt fjørfegjødsel",null,null,{"$f":"IF(AP15=3,SUM(AO29:AO30),\"\")","v":{"v":0,"d":"0.0"}},null,{"$f":"IF(AP15=3,SUM(AQ29:AQ30),\"\")","v":{"v":0,"d":"0.0"}},{"$nulls":10},1,0,0,0,null,1,0,0,null,24]
[{"$nulls":3},"","",null,"","",{"$nulls":13},false,"",{"$nulls":4},186,"Slaktekyllinger (NB: sum levert i året)",null,"Fytase","Ja",{"$f":"IF(AF32=\"Ja\",1750,1400)","v":{"v":1750,"d":"1,750"}},null,null,{"$f":"IF(AP15=3,IF(AH32=\"\",\"\",AH32/AG32),\"\")","v":""},{"$nulls":17},1,0,0,0,null,1,0,0,null,25]
[{"$nulls":3},"","",null,"","",{"$nulls":13},false,"",{"$nulls":4},168,"Avlsdyr ender og kalkuner",{"$nulls":3},40,null,null,{"$f":"IF(AP15=3,IF(AI33&AH33=\"\",\"\",(AI33+AH33)/2/AG33),\"\")","v":""},null,{"$f":"CONCATENATE(\"Oppsummering spredeareal: \",P5,\", gnr. \",AB5,\" bnr. \",AC5)","v":"Oppsummering spredeareal: , gnr.  bnr. "},{"$nulls":15},1,0,0,0,null,1,0,0,null,26]
[{"$nulls":3},"","",{"$nulls":16},false,"",{"$nulls":4},168,"Avlsdyr gjess ",{"$nulls":3},20,null,null,{"$f":"IF(AP15=3,IF(AI34&AH34=\"\",\"\",(AI34+AH34)/2/AG34),\"\")","v":""},{"$nulls":17},1,0,0,0,null,1,0,0,null,27]
[{"$nulls":3},{"$f":"G9","v":""},"",{"$nulls":16},false,"",{"$nulls":4},174,"Slakteender",{"$nulls":3},300,null,null,{"$f":"IF(AP15=3,IF(AH35=\"\",\"\",AH35/AG35),\"\")","v":""},null,"Brutto GDE",{"$f":"IF(AP15=3,AI38,\"\")","v":0},"Sum spredeareal (daa)",null,null,{"$f":"IF(AP15=3,AQ14,\"\")","v":0},{"$nulls":10},1,0,0,0,null,1,0,0,null,28]
[{"$nulls":3},"","",{"$nulls":8},"Sum",null,{"$f":"SUM(P9:P35)","v":0},{"$f":"SUM(Q9:Q35)","v":0},{"$f":"SUM(R9:R35)","v":0},null,{"$f":"SUM(T9:T35)","v":0},{"$f":"SUM(U9:U35)","v":0},{"$nulls":6},174,"Slaktekalkuner",{"$nulls":3},240,null,null,{"$f":"IF(AP15=3,IF(AH36=\"\",\"\",AH36/AG36),\"\")","v":""},null,"- Red. beite",{"$f":"IF(AP15=3,-AQ25,\"\")","v":0},{"$f":"IF(AP15=3,CONCATENATE(\"Arealbehov: \",ROUND(AM39,0),\" GDE x 4\"),\"Arealbehov\")","v":"Arealbehov: 0 GDE x 4"},null,null,{"$f":"IF(AP15=3,ROUND(AM39,2)*4,\"\")","v":0},{"$nulls":19},29]
[{"$nulls":3},"","",{"$nulls":22},174,"Slaktegjess",{"$nulls":3},150,null,null,{"$f":"IF(AP15=3,IF(AH37=\"\",\"\",AH37/AG37),\"\")","v":""},null,"- Levert",{"$f":"IF(AP15=3,-AO31,\"\")","v":0},{"$f":"IF(AP15=3,IF(AM40=0,\"\",CONCATENATE(AL40,\" \",AM40,\" daa.\")))","v":""},{"$nulls":22},30]
[{"$nulls":3},"","",{"$nulls":5},{"$f":"IF(BM9>0,\"*NB: \",\"\")","v":""},{"$f":"IF(BM9>0,\"Godkjent spredeareal på et/flere beiter på egen eller leid jord er høyere enn beitearealet.\",\"\")","v":""},{"$nulls":19},"Brutto GDE",null,null,{"$f":"IF(AP15=3,SUM(AJ8:AJ37),\"\")","v":0},null,null,"+ Mottak",{"$f":"IF(AP15=3,AQ31,\"\")","v":0},{"$nulls":23},31]
[{"$nulls":3},"","",{"$nulls":5},{"$f":"IF(R36<(T36*3/2),\"PS:  \",\"\")","v":""},{"$f":"IF(R36<(T36*3/2),\" Omregnet spredeareal overstiger effektivt innmarksbeiteareal.\",\"\")","v":""},{"$nulls":25},"Netto GDE",{"$f":"IF(AP15=3,SUM(AM35:AM38),\"\")","v":0},{"$nulls":23},32]
[{"$nulls":3},"","",{"$nulls":5},"Krav til spredeavtale for utleid/leid spredeareal. Bekrefe for hver avtale (merk av i      ) for at arealet skal telle med.",{"$nulls":26},{"$f":"IF(AQ35>AQ36,\"Gården har ledig spredeareal på\",IF(AQ35=AQ36,\"Gården har ledig spredeareal\",\"For lite spredeareal på gården. Det mangler\"))","v":"Gården har ledig spredeareal"},{"$f":"IF(AP15=3,ROUND(IF(AQ35-AQ36>0,AQ35-AQ36,AQ36-AQ35),0),\"\")","v":0},{"$f":"IF(AJ6=\"\",\"\",VLOOKUP(AJ6,Kommuner,2))","v":""},{"$f":"IF(AJ6=\"\",\"\",VLOOKUP(AJ6,Kommuner,3))","v":""},{"$nulls":21},33]
[{"$nulls":3},"","",{"$nulls":57},34]
[{"$nulls":3},{"$f":"G16","v":""},{"$nulls":58},35]
[{"$nulls":3},"","",{"$nulls":57},36]
[{"$nulls":3},"","",{"$nulls":57},37]
[{"$nulls":3},"","","    Eierforhold\n   spredeareal\n 4 kategorier:\n  1 - Egen jord (PT)\n  2 - Leid jord (PT)\n  3 - Leid spredeareal\n  4 - Utleid spr.areal",{"$nulls":6},"Om arealopplysninger",{"$nulls":13},"Om PT-koder",{"$nulls":3},{"$f":"IF(AD45=\"\",\"\",VLOOKUP(AD45,PT,2))","v":""},{"$nulls":6},"Om spredeareal",{"$nulls":24},38]
[{"$nulls":3},"","",{"$nulls":57},39]
[{"$nulls":3},"","",{"$nulls":5},"Beskrivelse / forklaring",{"$nulls":15},"Beskrivelse / forklaring",{"$nulls":10},"Beskrivelse / forklaring",{"$nulls":24},40]
[{"$nulls":3},"","",{"$nulls":5},{"$f":"IF(O45=\"\",\"\",VLOOKUP(O45,'PT-koder'!A29:B39,2))","v":""},{"$nulls":15},{"$f":"IF(AD45=\"\",\"\",VLOOKUP(AD45,PT,3))","v":""},{"$nulls":10},{"$f":"IF(AN45=\"\",\"\",VLOOKUP(AN45,'PT-koder'!A42:B44,2))","v":""},{"$nulls":24},41]
[{"$nulls":3},"","",{"$nulls":57},42]
[{"$nulls":3},"","",{"$nulls":57},43]
[{"$nulls":3},{"$f":"G25","v":""},"",{"$nulls":57},44]
[{"$nulls":3},"","",{"$nulls":57},45]
[{"$nulls":3},"","",{"$nulls":57},46]
[{"$nulls":3},"","",{"$nulls":57},47]
[{"$nulls":3},"","",{"$nulls":57},48]
[{"$nulls":3},"","",{"$nulls":57},49]
[{"$nulls":3},"","",{"$nulls":57},50]
[{"$nulls":3},"","",{"$nulls":57},51]
[{"$nulls":3},"","",{"$nulls":57},52]

{"sheet":"PT-koder","index":1,"n_rows":61,"n_cols":3,"rows_kept":61,"hidden":true,"merged":[[28,1,28,2],[29,1,29,2],[30,1,30,2],[31,1,31,2],[32,1,32,2],[33,1,33,2],[34,1,34,2],[35,1,35,2],[36,1,36,2],[37,1,37,2],[38,1,38,2],[39,1,39,2],[40,1,40,2],[41,1,41,2],[42,1,42,2],[43,1,43,2]]}
["PT-kode","Beskrivelse","Forklaring"]
[115,"Hester, under 3 år (i avl eller ikke)","Hester under 3 år på foretaket. Hester i pensjon på vinter mot godtgjørelse regnes med om foretaket har ansvaret for stell. Hester på foretaket, som stelles av eieren regnes ikke med."]
[116,"Hester, 3 år og eldre  (i avl eller ikke)","Hester over 3 år på foretaket. Hester i pensjon på vinter mot godtgjørelse regnes med om foretaket har ansvaret for stell. Hester på foretaket, som stelles av eieren regnes ikke med."]
[119,"Øvrige storfe ","Storfe som ikke er melkeku (120) eller ammku ( 121) dvs. kalver, ungokser, okser, kviger og kyr. Kyr som har kalvet i løpet av de siste 15 (18) måneder, men som ikke oppfyller kravet til vanlig jordbruksproduksjon."]
[120,"Melkekyr, kalva i de siste 15 måneder","Kyr i melkeproduksjon hos foretak med disponibel melkekvote eller lokalforedlings-kvote, og som har kalvet i løpet av de siste 15 månedene.\n\nKun jerseyku kan legges inn under \"210 Jerseyku\". Melkekyr i andre storferaser (om de så er mindre) må legges inn i kode 120."]
[121,"Ammekyr (bevaringsrase), kalva siste 18 mnd","Ikke  melkekyr som har kalvet i løpet av de siste 15 måneder (18 måneder for kyr av bevaringsverdig rase)."]
[139,"Melkesau, født i fjor eller tidligere ","Melkesauer født i fjor eller tidligere der melken går til råstoff ved lokal foredling."]
[140,"Melkegeiter ","Melkegeiter på foretak med disponibel kvote eller lokalforedlingskvote, inkl. geiter i sinperiode før start på neste laktasjon."]
[142,"Ammegeiter ","Geiter som har kjeet minst en gang og  ikke er melkegeiter."]
[144,"Bukker og ungdyr (inkl. kje) ","Alle andre geiter: kje, bukker og ungdyr som ikke har kjeet."]
[145,"Søyer, født i fjor eller tidligere","Vinterfora og utegangarsøyer født i fjor eller tidligere. Ikke melkesau."]
[146,"Værer, født i fjor eller tidligere ","Vinterfôra utegangerværer født i fjor eller tidligere."]
[155,"Avlspurker, minst ett kull ","Avlspurker: Inkl. griser, villsvin og villsvinkrysninger.\n- I NAV: formel korrigert for gjødselmengde avlspurkene produserer i NAV-et.\n   GDE bør beregnes i direkte dialog med bonden.\n- I satellitt: formel korrigert for gjødselmenge avvlspurkene og grisungene produserer i satelitten. GDE bør beregnes i direkte dialog med bonden."]
[156,"Råner i avl","Inkl. griser, villsvin og villsvinkrysninger."]
[168,"Avlsdyr ender og kalkuner","Avlsdyr av ender, kalkuner og gjess"]
[170,"Minktisper ","Minktisper "]
[171,"Revetisper ","Revetisper "]
[174,"Slakteender, slaktekalkuner, slaktegjess","Ender, kalkuner og gjess for slakt"]
[175,"Livkylling, påsatt til verpehøns ","Livkyllinger, påsatt til verpehøns"]
[184,"NB: Slakta gris på årsbasis","Alle slakta gris på årsbasis fra leveransedatabasen.\nNB: Dette er antall faktisk slakta gris men gjelder IKKE for engangspurker."]
[186,"Slaktekyllinger\n(NB sum levert i året)","Sum slaktekyllinger levert til slakt gjennom året, ikke bare på telledato."]
[193,"Hester i pensjon i beitesesongen","Hester i pensjon i beitesesong registreres bare i oktober. Skriftlig avtale. "]
["157, 158, 159","Ungpurker/råner påsatt til avl","Alle gris: påsett avl fra smågris til grising (fratrekt solgte livdyr).\n\nPurker som slaktes etter 1. grising (engangspurker) fanges opp her.\nGDE-beregninger for engangspurker bør bygge på direkte dialog med bonden. "]
["161-162","Verpe- og rugehøner, > 20 uker","Ved opphold mellom to innsett for verpehøner på telledato (1. mai 2017 og 1. oktober 2017), kan antall høner ved forrige telledato føres i  160. Dette gjelder både for foretak med konsumeggproduksjon og for foretak med rugeeggproduksjon. Foretaket må ha kontrakt om kjøp av nye høner, og oppholdsperioden kan maksimalt være 12 uker. Oppholdsperioden regnes fra slakting til høner i nytt kull er 20 uker gamle."]
["Lev.db","Solgte ungpurker/ råner >50 kg/>15 uker","Opplysninger fra leveransedatabasen. Viktig at dyr i PT-kode 157 ikke blir tatt med."]
[]
[]
["Forklaringer"]
["A - Fulldyrka jord","Jordbruksareal som er dyrka til vanlig pløyedjup, og kan benyttes til åkervekster eller til eng, og som kan fornyes ved pløying. Automatisk spredeareal."]
["B - Overflatedyrka jord","Jordbruksareal som for det meste er rydda og jevna i overflata, slik at maskinell høsting er mulig. Automatisk spredeareal"]
["C - Innmarksbeite","Jordbruksareal som kun beites og kan ikke høstes maskinelt. Minst 50 % av arealet må være deka av kulturgras eller beitetålende urter. Tellende areal på innmarksbeite (effektivt beite) er fratrekt stein, berg i dagen mv…\nAvlingen på et effektivt innmarksbeite gir grovt sett 2/3 av avlingen på en fulldyrka jord. Ved godkjenning av spredeareal omregnes areal på søkt innmarksbeite til verdien på fulldyrka jord.\nInnmarksbeiter trenger kommunal godkjenning at husdyrgjødsel kan brukes som gjødslingsmiddel her."]
["D - Spredeareal","Jordbruksareal der du har tillatelse til å bruke husdyrgjødsel som gjødslingsmiddel. Fulldyrka jord og overflatedyrka jord er automatisk spredeareal. Innmarksbeite kan etter søknad godkjennes av kommunen som som spredeareal."]
["E - Omregna beite","Effektivt beiteareal godkjent som spredeareal som er omregnet til fulldyrka jord (faktor 2/3 eller 0,67). Verdien ligger i vedtak fra kommune."]
["F - Omregna frukthage oa.","Produksjonsareal som etter godkjenning fra kommunen kan inngå i spredearealet på en gård."]
["G - Spredeavtale","Skriftlig avtale mellom leverandør og mottaker av husdyrgjødsel. Viktig dokumentasjon ved forvaltningsmessig kontroll på husdyrgjødsel. All bruk av mottatt husdyrgjødsel skal vises i gjødslingsplanen til mottaker."]
["H - Egen jord","Innmarka på egen gård: fulldyrka jord, overflatedyrka jord og innmarksbeite etter opplysninger i søknad om produksjonstilskudd"]
["I - Leid jord","Leid innmarka på annen gård (fulldyrka jord, overflatedyrka jord og innmarksbeite) etter opplysninger i søknad om produksjonstilskudd."]
["J - Leid spr.areal","Innmarksareal fra spredeavtale du har med mottakere av husdyrgjødsel fra din gård. Avtalen må kunne dokumenteres. Mengde husdyrgjødsel du sender ut må ligge i gjødslingsplanen til mottaker."]
["K - Utleid spr.areal","Innmarksareal fra spredeavtale du har med leverandører av husdyrgjødsel fra din gård. Avtalen må kunne dokumenteres. Bruken av mottatt husdyrgjødsel må ligge i din årlige gjødslingsplan."]
[]
["Tema","Forklaring"]
["1 - Dyretall","Alle dyr i søknad om produksjonstilskudd i oktober og mars samt oversikt fra mottakere av slaktedyr (leveransedatabasen)."]
["2 - Beiting utenom godkjent spredeareal","Reduksjon beitepraksis er antall dyr og uker som beiter i utmark og på innmarksbeite som IKKE er godkjent spredeareal. Beitelogg er god dokumentasjon ved kontroll."]
["3 - Levert/mottatt husdyrgjødsel","Gjelder kun gjødsel fra fjørfe. Må dokumenteres med signert kvittering. Levert/mottatt gjødsel fra andre dyreslag må registreres via arealopplysninger (spredeavtale)."]
{"$rows_empty":7}
["Avlspurke NAV","Korrigerte beregninger etter anslått gjødselmengde produsert i NAV-et."]
["Avlspurke satellitt","Korrigerte beregninger etter anslått gjødselmengde som er produsert i satellitten (inkl smågris)."]
[]
["Egen gård","Tall fra søknad om produksjonstilskudd!\nSjekk godkjent spredeareal"]
["Engangspurker","Korrigerte beregninger ut fra realistiske forhold"]
["Leid jord","Tall fra søknad om produksjonstilskudd.\nSjekk godkjent spredeareal!"]
["Leid spredeareal (levert husdyrgjødel)","Arealtall fra spredeavtale du har med mottakere av husdyrgjødsel fra din gård. Avtalen må kunne dokumenteres. Husdyrgjødsel fra din gård må inngå i utleiers gjødslingsplan."]
["Levert/ mottatt gjødsel","Kun åpning for gjødsel fra fjørfe og pelsdyr. Pga. innhold av vann kan annen husdyrgjødsel bli misvisende. Bruk areal i stedet."]
[]
["Utleid spredeareal","Mottak av husdyrgjødsel. Avtalen må kunne dokumenteres. Husdyrgjødsla må inngå i din årlige gjødslingsplan og spres på godkjent spredeareal på din gård."]

{"sheet":"Tabell","index":2,"n_rows":357,"n_cols":18,"rows_kept":357,"hidden":true}
["Fylker",null,"Agder","Innlandet","Møre og Romsdal","Nordland","Oslo","Rogaland","Troms og Finnmark","Trøndelag","Vestfold og Telemark","Vestland","Viken",{"$nulls":3},"Kommunenavn","Nr"]
["Agder",null,"Arendal","Alvdal","Aukra","Alstahaug","Oslo","Bjerkreim","Alta","Flatanger","Bamble","Alver","Aremark",{"$nulls":3},"Alstahaug",1820]
["Innlandet",null,"Birkenes","Dovre","Aure","Andøy",null,"Bokn","Balsfjord","Frosta","Drangedal","Askvoll","Asker",{"$nulls":3},"Alta",5403]
["Møre og Romsdal",null,"Bygland","Eidskog","Averøy","Beiarn",null,"Eigersund","Bardu","Frøya","Fyresdal","Askøy","Aurskog-Høland",{"$nulls":3},"Alvdal",3428]
["Nordland",null,"Bykle","Elverum","Fjord","Bindal",null,"Gjesdal","Berlevåg","Grong","Færder","Aurland","Bærum",{"$nulls":3},"Alver",4631]
["Oslo",null,"Evje og Hornnes","Engerdal","Giske","Bodø",null,"Haugesund","Båtsfjord","Heim","Hjartdal","Austevoll","Drammen",{"$nulls":3},"Andøy",1871]
["Rogaland",null,"Farsund","Etnedal","Gjemnes","Brønnøy",null,"Hjelmeland","Dyrøy","Hitra","Holmestrand","Austrheim","Eidsvoll",{"$nulls":3},"Aremark",3012]
["Troms og Finnmark",null,"Flekkefjord","Folldal","Hareid","Bø",null,"Hå","Gamvik","Holtålen","Horten","Bergen","Enebakk",{"$nulls":3},"Arendal",4203]
["Trøndelag",null,"Froland","Gausdal","Herøy","Dønna",null,"Karmøy","Gratangen","Høylandet","Kragerø","Bjørnafjorden","Flesberg",{"$nulls":3},"Asker",3025]
["Vestfold og Telemark",null,"Gjerstad","Gjøvik","Hustadvika","Evenes",null,"Klepp","Hammerfest","Inderøy","Kviteseid","Bremanger","Flå",{"$nulls":3},"Askvoll",4645]
["Vestland",null,"Grimstad","Gran","Kristiansund","Fauske",null,"Kvitsøy","Harstad","Indre Fosen","Larvik","Bømlo","Fredrikstad",{"$nulls":3},"Askøy",4627]
["Viken",null,"Hægebostad","Grue","Molde","Flakstad",null,"Lund","Hasvik","Leka","Midt-Telemark","Eidfjord","Frogn",{"$nulls":3},"Aukra",1547]
[null,null,"Iveland","Hamar","Rauma","Gildeskål",null,"Randaberg","Ibestad","Levanger","Nissedal","Etne","Gjerdrum",{"$nulls":3},"Aure",1576]
[null,null,"Kristiansand","Kongsvinger","Sande","Grane",null,"Sandnes","Karasjok","Lierne","Nome","Fedje","Gol",{"$nulls":3},"Aurland",4641]
[null,null,"Kvinesdal","Lesja","Smøla","Hadsel",null,"Sauda","Karlsøy","Malvik","Notodden","Fitjar","Halden",{"$nulls":3},"Aurskog-Høland",3026]
[null,null,"Lillesand","Lillehammer","Stranda","Hamarøy",null,"Sokndal","Kautokeino","Melhus","Porsgrunn","Fjaler","Hemsedal",{"$nulls":3},"Austevoll",4625]
[null,null,"Lindesnes","Lom","Sula","Hattfjelldal",null,"Sola","Kvæfjord","Meråker","Sandefjord","Gloppen","Hol",{"$nulls":3},"Austrheim",4632]
[null,null,"Lyngdal","Løten","Sunndal","Hemnes",null,"Stavanger","Kvænangen","Midtre Gauldal","Seljord","Gulen","Hole",{"$nulls":3},"Averøy",1554]
[null,null,"Risør","Nord-Aurdal","Surnadal","Herøy",null,"Strand","Kåfjord","Namsos","Siljan","Hyllestad","Hurdal",{"$nulls":3},"Balsfjord",5422]
[null,null,"Sirdal","Nord-Fron","Sykkylven","Leirfjord",null,"Suldal","Lavangen","Namsskogan","Skien","Høyanger","Hvaler",{"$nulls":3},"Bamble",3813]
[null,null,"Tvedestrand","Nord-Odal","Tingvoll","Lurøy",null,"Time","Lebesby","Nærøysund","Tinn","Kinn","Indre Østfold",{"$nulls":3},"Bardu",5416]
[null,null,"Valle","Nordre Land","Ulstein","Lødingen",null,"Tysvær","Loppa","Oppdal","Tokke","Kvam","Jevnaker",{"$nulls":3},"Beiarn",1839]
[null,null,"Vegårshei","Os","Vanylven","Meløy",null,"Utsira","Lyngen","Orkland","Tønsberg","Kvinnherad","Kongsberg",{"$nulls":3},"Bergen",4601]
[null,null,"Vennesla","Rendalen","Vestnes","Moskenes",null,"Vindafjord","Målselv","Osen","Vinje","Luster","Krødsherad",{"$nulls":3},"Berlevåg",5440]
[null,null,"Åmli","Ringebu","Volda","Narvik",null,null,"Måsøy","Overhalla",null,"Lærdal","Lier",{"$nulls":3},"Bindal",1811]
[null,null,"Åseral","Ringsaker","Ørsta","Nesna",null,null,"Nesseby","Rennebu",null,"Masfjorden","Lillestrøm",{"$nulls":3},"Birkenes",4216]
[null,null,"","Sel","Ålesund","Rana",null,null,"Nordkapp","Rindal",null,"Modalen","Lunner",{"$nulls":3},"Bjerkreim",1114]
[{"$nulls":3},"Skjåk",null,"Rødøy",null,null,"Nordreisa","Røros",null,"Osterøy","Lørenskog",{"$nulls":3},"Bjørnafjorden",4624]
[{"$nulls":3},"Stange",null,"Røst",null,null,"Porsanger","Røyrvik",null,"Samnanger","Marker",{"$nulls":3},"Bodø",1804]
[{"$nulls":3},"Stor-Elvdal",null,"Saltdal",null,null,"Salangen","Selbu",null,"Sogndal","Modum",{"$nulls":3},"Bokn",1145]
[{"$nulls":3},"Søndre Land",null,"Sortland",null,null,"Senja","Skaun",null,"Solund","Moss",{"$nulls":3},"Bremanger",4648]
[{"$nulls":3},"Sør-Aurdal",null,"Steigen",null,null,"Skjervøy","Snåsa",null,"Stad","Nannestad",{"$nulls":3},"Brønnøy",1813]
[{"$nulls":3},"Sør-Fron",null,"Sømna",null,null,"Storfjord","Steinkjer",null,"Stord","Nes",{"$nulls":3},"Bygland",4220]
[{"$nulls":3},"Sør-Odal",null,"Sørfold",null,null,"Sørreisa","Stjørdal",null,"Stryn","Nesbyen",{"$nulls":3},"Bykle",4222]
[{"$nulls":3},"Tolga",null,"Træna",null,null,"Sør-Varanger","Trondheim",null,"Sunnfjord","Nesodden",{"$nulls":3},"Bærum",3024]
[{"$nulls":3},"Trysil",null,"Vefsn",null,null,"Tana","Tydal",null,"Sveio","Nittedal",{"$nulls":3},"Bø",1867]
[{"$nulls":3},"Tynset",null,"Vega",null,null,"Tjeldsund","Verdal",null,"Tysnes","Nordre Follo",{"$nulls":3},"Bømlo",4613]
[{"$nulls":3},"Vang",null,"Vestvågøy",null,null,"Tromsø","Ørland",null,"Ullensvang","Nore og Uvdal",{"$nulls":3},"Båtsfjord",5443]
[{"$nulls":3},"Vestre Slidre",null,"Vevelstad",null,null,"Vadsø","Åfjord",null,"Ulvik","Rakkestad",{"$nulls":3},"Dovre",3431]
[{"$nulls":3},"Vestre Toten",null,"Værøy",null,null,"Vardø",null,null,"Vaksdal","Ringerike",{"$nulls":3},"Drammen",3005]
[{"$nulls":3},"Vågå",null,"Vågan",{"$nulls":5},"Vik","Rollag",{"$nulls":3},"Drangedal",3815]
[{"$nulls":3},"Våler (Hedm.)",null,"Øksnes",{"$nulls":5},"Voss","Rælingen",{"$nulls":3},"Dyrøy",5420]
[{"$nulls":3},"Østre Toten",{"$nulls":7},"Øygarden","Råde",{"$nulls":3},"Dønna",1827]
[{"$nulls":3},"Øyer",{"$nulls":7},"Årdal","Sarpsborg",{"$nulls":3},"Eidfjord",4619]
[{"$nulls":3},"Øystre Slidre",{"$nulls":8},"Sigdal",{"$nulls":3},"Eidskog",3416]
[{"$nulls":3},"Åmot",{"$nulls":8},"Skiptvet",{"$nulls":3},"Eidsvoll",3035]
[{"$nulls":3},"Åsnes",{"$nulls":8},"Ullensaker",{"$nulls":3},"Eigersund",1101]
[{"$nulls":12},"Vestby",{"$nulls":3},"Elverum",3420]
[{"$nulls":12},"Våler (Østf.)",{"$nulls":3},"Enebakk",3028]
[{"$nulls":12},"Øvre Eiker",{"$nulls":3},"Engerdal",3425]
[{"$nulls":12},"Ål",{"$nulls":3},"Etne",4611]
[{"$nulls":12},"Ås",{"$nulls":3},"Etnedal",3450]
[{"$nulls":16},"Evenes",1853]
[{"$nulls":16},"Evje og Hornnes",4219]
[{"$nulls":16},"Farsund",4206]
[{"$nulls":16},"Fauske",1841]
[{"$nulls":16},"Fedje",4633]
[{"$nulls":16},"Fitjar",4615]
[{"$nulls":16},"Fjaler",4646]
[{"$nulls":16},"Fjord",1578]
[{"$nulls":16},"Flakstad",1859]
[{"$nulls":16},"Flatanger",5049]
[{"$nulls":16},"Flekkefjord",4207]
[{"$nulls":16},"Flesberg",3050]
[{"$nulls":16},"Flå",3039]
[{"$nulls":16},"Folldal",3429]
[{"$nulls":16},"Fredrikstad",3004]
[{"$nulls":16},"Frogn",3022]
[{"$nulls":16},"Froland",4214]
[{"$nulls":16},"Frosta",5036]
[{"$nulls":16},"Frøya",5014]
[{"$nulls":16},"Fyresdal",3823]
[{"$nulls":16},"Færder",3811]
[{"$nulls":16},"Gamvik",5439]
[{"$nulls":16},"Gausdal",3441]
[{"$nulls":16},"Gildeskål",1838]
[{"$nulls":16},"Giske",1532]
[{"$nulls":16},"Gjemnes",1557]
[{"$nulls":16},"Gjerdrum",3032]
[{"$nulls":16},"Gjerstad",4211]
[{"$nulls":16},"Gjesdal",1122]
[{"$nulls":16},"Gjøvik",3407]
[{"$nulls":16},"Gloppen",4650]
[{"$nulls":16},"Gol",3041]
[{"$nulls":16},"Gran",3446]
[{"$nulls":16},"Grane",1825]
[{"$nulls":16},"Gratangen",5414]
[{"$nulls":16},"Grimstad",4202]
[{"$nulls":16},"Grong",5045]
[{"$nulls":16},"Grue",3417]
[{"$nulls":16},"Gulen",4635]
[{"$nulls":16},"Hadsel",1866]
[{"$nulls":16},"Halden",3001]
[{"$nulls":16},"Hamar",3403]
[{"$nulls":16},"Hamarøy",1875]
[{"$nulls":16},"Hammerfest",5406]
[{"$nulls":16},"Hareid",1517]
[{"$nulls":16},"Harstad",5402]
[{"$nulls":16},"Hasvik",5433]
[{"$nulls":16},"Hattfjelldal",1826]
[{"$nulls":16},"Haugesund",1106]
[{"$nulls":16},"Heim",5055]
[{"$nulls":16},"Hemnes",1832]
[{"$nulls":16},"Hemsedal",3042]
[{"$nulls":16},"Herøy",1515]
[{"$nulls":16},"Herøy",1818]
[{"$nulls":16},"Hitra",5056]
[{"$nulls":16},"Hjartdal",3819]
[{"$nulls":16},"Hjelmeland",1133]
[{"$nulls":16},"Hol",3044]
[{"$nulls":16},"Hole",3038]
[{"$nulls":16},"Holmestrand",3802]
[{"$nulls":16},"Holtålen",5026]
[{"$nulls":16},"Horten",3801]
[{"$nulls":16},"Hurdal",3037]
[{"$nulls":16},"Hustadvika",1579]
[{"$nulls":16},"Hvaler",3011]
[{"$nulls":16},"Hyllestad",4637]
[{"$nulls":16},"Hægebostad",4226]
[{"$nulls":16},"Høyanger",4638]
[{"$nulls":16},"Høylandet",5046]
[{"$nulls":16},"Hå",1119]
[{"$nulls":16},"Ibestad",5413]
[{"$nulls":16},"Inderøy",5053]
[{"$nulls":16},"Indre Fosen",5054]
[{"$nulls":16},"Indre Østfold",3014]
[{"$nulls":16},"Iveland",4218]
[{"$nulls":16},"Jevnaker",3053]
[{"$nulls":16},"Karasjok",5437]
[{"$nulls":16},"Karlsøy",5423]
[{"$nulls":16},"Karmøy",1149]
[{"$nulls":16},"Kautokeino",5430]
[{"$nulls":16},"Kinn",4602]
[{"$nulls":16},"Klepp",1120]
[{"$nulls":16},"Kongsberg",3006]
[{"$nulls":16},"Kongsvinger",3401]
[{"$nulls":16},"Kragerø",3814]
[{"$nulls":16},"Kristiansand",4204]
[{"$nulls":16},"Kristiansund",1505]
[{"$nulls":16},"Krødsherad",3046]
[{"$nulls":16},"Kvam",4622]
[{"$nulls":16},"Kvinesdal",4227]
[{"$nulls":16},"Kvinnherad",4617]
[{"$nulls":16},"Kviteseid",3821]
[{"$nulls":16},"Kvitsøy",1144]
[{"$nulls":16},"Kvæfjord",5411]
[{"$nulls":16},"Kvænangen",5429]
[{"$nulls":16},"Kåfjord",5426]
[{"$nulls":16},"Larvik",3805]
[{"$nulls":16},"Lavangen",5415]
[{"$nulls":16},"Lebesby",5438]
[{"$nulls":16},"Leirfjord",1822]
[{"$nulls":16},"Leka",5052]
[{"$nulls":16},"Lesja",3432]
[{"$nulls":16},"Levanger",5037]
[{"$nulls":16},"Lier",3049]
[{"$nulls":16},"Lierne",5042]
[{"$nulls":16},"Lillehammer",3405]
[{"$nulls":16},"Lillesand",4215]
[{"$nulls":16},"Lillestrøm",3030]
[{"$nulls":16},"Lindesnes",4205]
[{"$nulls":16},"Lom",3434]
[{"$nulls":16},"Loppa",5432]
[{"$nulls":16},"Lund",1112]
[{"$nulls":16},"Lunner",3054]
[{"$nulls":16},"Lurøy",1834]
[{"$nulls":16},"Luster",4644]
[{"$nulls":16},"Lyngdal",4225]
[{"$nulls":16},"Lyngen",5424]
[{"$nulls":16},"Lærdal",4642]
[{"$nulls":16},"Lødingen",1851]
[{"$nulls":16},"Lørenskog",3029]
[{"$nulls":16},"Løten",3412]
[{"$nulls":16},"Malvik",5031]
[{"$nulls":16},"Marker",3013]
[{"$nulls":16},"Masfjorden",4634]
[{"$nulls":16},"Melhus",5028]
[{"$nulls":16},"Meløy",1837]
[{"$nulls":16},"Meråker",5034]
[{"$nulls":16},"Midtre Gauldal",5027]
[{"$nulls":16},"Midt-Telemark",3817]
[{"$nulls":16},"Modalen",4629]
[{"$nulls":16},"Modum",3047]
[{"$nulls":16},"Molde",1506]
[{"$nulls":16},"Moskenes",1874]
[{"$nulls":16},"Moss",3002]
[{"$nulls":16},"Målselv",5418]
[{"$nulls":16},"Måsøy",5434]
[{"$nulls":16},"Namsos",5007]
[{"$nulls":16},"Namsskogan",5044]
[{"$nulls":16},"Nannestad",3036]
[{"$nulls":16},"Narvik",1806]
[{"$nulls":16},"Nes",3034]
[{"$nulls":16},"Nesbyen",3040]
[{"$nulls":16},"Nesna",1828]
[{"$nulls":16},"Nesodden",3023]
[{"$nulls":16},"Nesseby",5442]
[{"$nulls":16},"Nissedal",3822]
[{"$nulls":16},"Nittedal",3031]
[{"$nulls":16},"Nome",3816]
[{"$nulls":16},"Nord-Aurdal",3451]
[{"$nulls":16},"Nord-Fron",3436]
[{"$nulls":16},"Nordkapp",5435]
[{"$nulls":16},"Nord-Odal",3414]
[{"$nulls":16},"Nordre Follo",3020]
[{"$nulls":16},"Nordre Land",3448]
[{"$nulls":16},"Nordreisa",5428]
[{"$nulls":16},"Nore og Uvdal",3052]
[{"$nulls":16},"Notodden",3808]
[{"$nulls":16},"Nærøysund",5060]
[{"$nulls":16},"Oppdal",5021]
[{"$nulls":16},"Orkland",5059]
[{"$nulls":16},"Os",3430]
[{"$nulls":16},"Osen",5020]
[{"$nulls":16},"Oslo",301]
[{"$nulls":16},"Osterøy",4630]
[{"$nulls":16},"Overhalla",5047]
[{"$nulls":16},"Porsanger",5436]
[{"$nulls":16},"Porsgrunn",3806]
[{"$nulls":16},"Rakkestad",3016]
[{"$nulls":16},"Rana",1833]
[{"$nulls":16},"Randaberg",1127]
[{"$nulls":16},"Rauma",1539]
[{"$nulls":16},"Rendalen",3424]
[{"$nulls":16},"Rennebu",5022]
[{"$nulls":16},"Rindal",5061]
[{"$nulls":16},"Ringebu",3439]
[{"$nulls":16},"Ringerike",3007]
[{"$nulls":16},"Ringsaker",3411]
[{"$nulls":16},"Risør",4201]
[{"$nulls":16},"Rollag",3051]
[{"$nulls":16},"Rælingen",3027]
[{"$nulls":16},"Rødøy",1836]
[{"$nulls":16},"Røros",5025]
[{"$nulls":16},"Røst",1856]
[{"$nulls":16},"Røyrvik",5043]
[{"$nulls":16},"Råde",3017]
[{"$nulls":16},"Salangen",5417]
[{"$nulls":16},"Saltdal",1840]
[{"$nulls":16},"Samnanger",4623]
[{"$nulls":16},"Sande",1514]
[{"$nulls":16},"Sandefjord",3804]
[{"$nulls":16},"Sandnes",1108]
[{"$nulls":16},"Sarpsborg",3003]
[{"$nulls":16},"Sauda",1135]
[{"$nulls":16},"Sel",3437]
[{"$nulls":16},"Selbu",5032]
[{"$nulls":16},"Seljord",3820]
[{"$nulls":16},"Senja",5421]
[{"$nulls":16},"Sigdal",3045]
[{"$nulls":16},"Siljan",3812]
[{"$nulls":16},"Sirdal",4228]
[{"$nulls":16},"Skaun",5029]
[{"$nulls":16},"Skien",3807]
[{"$nulls":16},"Skiptvet",3015]
[{"$nulls":16},"Skjervøy",5427]
[{"$nulls":16},"Skjåk",3433]
[{"$nulls":16},"Smøla",1573]
[{"$nulls":16},"Snåsa",5041]
[{"$nulls":16},"Sogndal",4640]
[{"$nulls":16},"Sokndal",1111]
[{"$nulls":16},"Sola",1124]
[{"$nulls":16},"Solund",4636]
[{"$nulls":16},"Sortland",1870]
[{"$nulls":16},"Stad",4649]
[{"$nulls":16},"Stange",3413]
[{"$nulls":16},"Stavanger",1103]
[{"$nulls":16},"Steigen",1848]
[{"$nulls":16},"Steinkjer",5006]
[{"$nulls":16},"Stjørdal",5035]
[{"$nulls":16},"Stord",4614]
[{"$nulls":16},"Stor-Elvdal",3423]
[{"$nulls":16},"Storfjord",5425]
[{"$nulls":16},"Strand",1130]
[{"$nulls":16},"Stranda",1525]
[{"$nulls":16},"Stryn",4651]
[{"$nulls":16},"Sula",1531]
[{"$nulls":16},"Suldal",1134]
[{"$nulls":16},"Sunndal",1563]
[{"$nulls":16},"Sunnfjord",4647]
[{"$nulls":16},"Surnadal",1566]
[{"$nulls":16},"Sveio",4612]
[{"$nulls":16},"Sykkylven",1528]
[{"$nulls":16},"Sømna",1812]
[{"$nulls":16},"Søndre Land",3447]
[{"$nulls":16},"Sør-Aurdal",3449]
[{"$nulls":16},"Sørfold",1845]
[{"$nulls":16},"Sør-Fron",3438]
[{"$nulls":16},"Sør-Odal",3415]
[{"$nulls":16},"Sørreisa",5419]
[{"$nulls":16},"Sør-Varanger",5444]
[{"$nulls":16},"Tana",5441]
[{"$nulls":16},"Time",1121]
[{"$nulls":16},"Tingvoll",1560]
[{"$nulls":16},"Tinn",3818]
[{"$nulls":16},"Tjeldsund",5412]
[{"$nulls":16},"Tokke",3824]
[{"$nulls":16},"Tolga",3426]
[{"$nulls":16},"Tromsø",5401]
[{"$nulls":16},"Trondheim",5001]
[{"$nulls":16},"Trysil",3421]
[{"$nulls":16},"Træna",1835]
[{"$nulls":16},"Tvedestrand",4213]
[{"$nulls":16},"Tydal",5033]
[{"$nulls":16},"Tynset",3427]
[{"$nulls":16},"Tysnes",4616]
[{"$nulls":16},"Tysvær",1146]
[{"$nulls":16},"Tønsberg",3803]
[{"$nulls":16},"Ullensaker",3033]
[{"$nulls":16},"Ullensvang",4618]
[{"$nulls":16},"Ulstein",1516]
[{"$nulls":16},"Ulvik",4620]
[{"$nulls":16},"Utsira",1151]
[{"$nulls":16},"Vadsø",5405]
[{"$nulls":16},"Vaksdal",4628]
[{"$nulls":16},"Valle",4221]
[{"$nulls":16},"Vang",3454]
[{"$nulls":16},"Vanylven",1511]
[{"$nulls":16},"Vardø",5404]
[{"$nulls":16},"Vefsn",1824]
[{"$nulls":16},"Vega",1815]
[{"$nulls":16},"Vegårshei",4212]
[{"$nulls":16},"Vennesla",4223]
[{"$nulls":16},"Verdal",5038]
[{"$nulls":16},"Vestby",3019]
[{"$nulls":16},"Vestnes",1535]
[{"$nulls":16},"Vestre Slidre",3452]
[{"$nulls":16},"Vestre Toten",3443]
[{"$nulls":16},"Vestvågøy",1860]
[{"$nulls":16},"Vevelstad",1816]
[{"$nulls":16},"Vik",4639]
[{"$nulls":16},"Vindafjord",1160]
[{"$nulls":16},"Vinje",3825]
[{"$nulls":16},"Volda",1577]
[{"$nulls":16},"Voss",4621]
[{"$nulls":16},"Værøy",1857]
[{"$nulls":16},"Vågan",1865]
[{"$nulls":16},"Vågå",3435]
[{"$nulls":16},"Våler (Hedm.)",3419]
[{"$nulls":16},"Våler (Østf.)",3018]
[{"$nulls":16},"Øksnes",1868]
[{"$nulls":16},"Ørland",5057]
[{"$nulls":16},"Ørsta",1520]
[{"$nulls":16},"Østre Toten",3442]
[{"$nulls":16},"Øvre Eiker",3048]
[{"$nulls":16},"Øyer",3440]
[{"$nulls":16},"Øygarden",4626]
[{"$nulls":16},"Øystre Slidre",3453]
[{"$nulls":16},"Åfjord",5058]
[{"$nulls":16},"Ål",3043]
[{"$nulls":16},"Ålesund",1507]
[{"$nulls":16},"Åmli",4217]
[{"$nulls":16},"Åmot",3422]
[{"$nulls":16},"Årdal",4643]
[{"$nulls":16},"Ås",3021]
[{"$nulls":16},"Åseral",4224]
[{"$nulls":16},"Åsnes",3418]